bitfinex-derivatives/quotes_SOLF0:USTF0_20250829
["timestamp","ask_amount","ask_price","bid_price","bid_amount"]
[1756476454899,67.3322,207.9,207.65,79.3834]
[1756476455101,67.3446,207.86,207.65,7.64]
[1756476455401,67.3495,207.84,207.65,7.64]
[1756476455700,67.3622,207.8,207.65,7.64]
[1756476456001,71.7063,207.76,207.65,7.64]
[1756476456207,67.3751,207.76,207.61,323.54]
[1756476456399,67.3525,207.83,207.61,323.54]
[1756476456699,67.3527,207.83,207.62,7.15]
[1756476457004,67.337,207.88,207.69,7.15]
[1756476457198,67.3494,207.84,207.69,7.15]
[1756476457399,67.3559,207.82,207.69,7.15]
[1756476457605,71.7008,207.78,207.69,7.15]
[1756476457904,71.7008,207.78,207.62,51.53288909]
[1756476457905,4.3308,207.78,207.62,51.53288909]
[1756476458097,67.3559,207.82,207.62,51.53288909]
[1756476458297,71.6859,207.82,207.62,51.53288909]
[1756476458497,67.3411,207.87,207.63,7.15]
[1756476458700,67.3343,207.89,207.69,7.15]
[1756476458998,375.01288909,208.03,207.75,7.15]
[1756476458999,0.05,207.99,207.75,7.15]
[1756476459192,67.3041,207.98,207.77,7.15]
[1756476459400,67.2914,208.02,207.8,51.53288909]
[1756476459595,67.2684,208.09,207.85,67.3451]
[1756476459805,67.2635,208.11,207.87,7.15]
[1756476460097,67.223,208.23,207.96,67.3097]
[1756476460302,0.05,208.25,208.0,74.4462]
[1756476460499,4.371,208.25,208.02,4.3256]
[1756476460697,231.04,208.31,208.07,7.15]
[1756476460897,67.1663,208.41,208.17,7.15]
[1756476461100,4.3181,208.39,208.18,231.04]
[1756476461294,67.1663,208.41,208.18,231.04]
[1756476461493,0.05,208.37,208.17,7.15]
[1756476461695,67.2006,208.46,208.22,51.53288909]
[1756476461895,67.1632,208.42,208.22,51.53288909]
[1756476462102,67.1557,208.44,208.22,51.53288909]
[1756476462498,67.1758,208.38,208.19,7.15]
[1756476462808,67.1879,208.34,208.19,7.15]
[1756476463008,67.196,208.32,208.15,554.36]
[1756476463207,67.1879,208.34,208.15,554.36]
[1756476463711,0.05,208.41,208.15,554.36]
[1756476464201,0.05,208.39,208.15,554.36]
[1756476464599,0.05,208.39,208.16,58.68288909]
[1756476464800,0.05,208.39,208.16,7.15]
[1756476465104,0.05,208.41,208.11,230.86]
[1756476465400,230.86,208.49,207.99,1386.06]
[1756476465401,51.53288909,208.36,208.0,7.15]
[1756476465601,0.05,208.34,208.0,237.97]
[1756476465908,553.92,208.34,208.0,237.97]
[1756476466204,0.05,208.33,208.0,237.97]
[1756476466398,323.1,208.34,208.0,7.15]
[1756476466399,51.58288909,208.31,208.0,7.15]
[1756476466706,0.05,208.24,207.93,51.53288909]
[1756476467100,0.05,208.24,207.92,7.15]
[1756476467598,230.4,208.25,207.92,7.15]
[1756476467902,0.05,208.24,207.97,7.15]
[1756476468295,0.05,208.36,208.08,51.53288909]
[1756476468501,174.74,208.42,208.15,7.15]
[1756476468708,0.05,208.44,208.16,512.1]
[1756476468907,0.05,208.44,208.16,323.06]
[1756476469101,0.05,208.44,208.17,62.0]
[1756476469495,323.06,208.49,208.08,51.53288909]
[1756476469496,51.53288909,208.4,208.08,51.53288909]
[1756476469698,0.05,208.39,208.08,51.53288909]
[1756476469904,0.05,208.39,208.07,7.15]
[1756476470101,14.41,208.33,208.07,7.15]
[1756476470308,51.53288909,208.34,208.07,7.15]
[1756476470309,0.05,208.31,208.07,7.15]
[1756476470608,0.05,208.27,207.99,7.15]
[1756476471212,67.2433,208.17,207.99,7.15]
[1756476471410,67.2559,208.13,207.99,7.15]
[1756476471805,67.2368,208.19,207.99,7.15]
[1756476472006,71.5593,208.19,207.99,7.15]
[1756476472311,67.2579,208.13,207.99,7.15]
[1756476472911,67.2515,208.15,207.99,7.15]
[1756476472912,67.2497,208.15,207.99,7.15]
[1756476473208,67.2723,208.08,207.95,62.0]
[1756476473410,4.3247,208.08,207.94,51.53288909]
[1756476473610,67.2864,208.04,207.92,322.98]
[1756476473903,67.2787,208.06,207.92,322.98]
[1756476474105,67.2719,208.08,207.92,322.98]
[1756476474106,67.2724,208.08,207.92,322.98]
[1756476474304,67.2661,208.1,207.92,322.98]
[1756476474507,67.2699,208.09,207.92,322.98]
[1756476474703,67.2661,208.1,207.92,322.98]
[1756476475911,201.7048,208.2,207.92,322.98]
[1756476476211,67.2759,208.07,207.93,7.15]
[1756476476415,67.2628,208.11,207.93,7.15]
[1756476476718,67.257,208.13,207.94,7.15]
[1756476476910,67.2527,208.14,207.94,7.15]
[1756476477219,67.2687,208.09,207.94,7.15]
[1756476477417,4.3237,208.13,207.95,225.06]
[1756476477612,71.5806,208.13,207.95,225.06]
[1756476478216,71.5803,208.13,207.95,225.06]
[1756476478513,67.2479,208.16,207.96,7.15]
[1756476478707,67.2406,208.18,207.99,51.53288909]
[1756476478908,71.5696,208.16,207.97,51.53288909]
[1756476479116,67.2345,208.2,207.98,7.15]
[1756476479316,67.2461,208.16,207.98,7.15]
[1756476479512,4.3236,208.13,207.99,223.72]
[1756476479714,4.3236,208.13,208.0,62.0]
[1756476479913,67.2561,208.13,208.0,62.0]
[1756476480117,4.3241,208.11,207.99,223.72]
[1756476480419,67.2723,208.08,207.98,7.15]
[1756476480617,4.3239,208.12,207.98,7.15]
[1756476480827,67.2404,208.18,207.98,7.15]
[1756476481114,4.3225,208.18,207.99,222.82]
[1756476481318,67.2218,208.24,208.02,7.15]
[1756476481612,323.0,208.32,207.99,290.1203]
[1756476481613,67.1799,208.37,208.14,7.15]
[1756476481808,67.2174,208.41,208.19,51.53288909]
[1756476482015,67.1692,208.4,208.2,7.15]
[1756476482209,67.1513,208.46,208.2,67.233]
[1756476482416,67.1287,208.53,208.33,7.15]
[1756476482616,67.1149,208.57,208.35,7.15]
[1756476482919,67.1106,208.58,208.39,7.15]
[1756476483115,67.1048,208.6,208.39,7.15]
[1756476483322,67.1406,208.65,208.4,221.92]
[1756476483514,67.0756,208.69,208.45,7.15]
[1756476483821,67.0836,208.67,208.45,7.15]
[1756476484016,67.0884,208.65,208.45,7.15]
[1756476484216,67.0884,208.65,208.46,221.52]
[1756476484617,67.0611,208.74,208.47,7.15]
[1756476484812,67.0534,208.76,208.46,221.52]
[1756476484813,67.0534,208.76,208.57,58.68288909]
[1756476485012,67.0626,208.73,208.57,7.15]
[1756476485214,67.0761,208.69,208.57,228.07]
[1756476485419,67.0883,208.65,208.48,7.15]
[1756476485615,67.0543,208.76,208.51,7.15]
[1756476485816,67.0481,208.78,208.55,51.53288909]
[1756476486015,67.0601,208.74,208.53,7.15]
[1756476486318,67.0793,208.68,208.54,220.54]
[1756476486614,67.0858,208.66,208.46,62.0]
[1756476486814,67.0506,208.77,208.52,7.46]
[1756476487013,67.0562,208.75,208.52,7.46]
[1756476487211,67.0755,208.69,208.45,7.46]
[1756476487411,67.0755,208.69,208.38,4.3182]
[1756476487412,67.1157,208.57,208.39,7.46]
[1756476487618,67.1205,208.55,208.39,7.46]
[1756476487820,67.0865,208.66,208.42,51.53288909]
[1756476488013,67.0628,208.73,208.44,7.46]
[1756476488214,67.0948,208.63,208.36,58.99288909]
[1756476488514,67.1403,208.49,208.36,7.46]
[1756476488718,67.1403,208.49,208.31,322.6]
[1756476488915,67.112,208.58,208.36,51.53288909]
[1756476489114,67.0958,208.63,208.38,67.1743]
[1756476489417,67.0757,208.69,208.5,7.46]
[1756476489613,67.0757,208.69,208.49,51.53288909]
[1756476489614,67.0661,208.72,208.52,7.46]
[1756476489813,67.0469,208.78,208.55,51.53288909]
[1756476490020,67.0724,208.7,208.48,322.56]
[1756476490321,67.0599,208.74,208.53,51.53288909]
[1756476490517,51.53288909,208.78,208.5,7.46]
[1756476490723,51.53288909,208.78,208.48,322.56]
[1756476490924,51.53288909,208.78,208.44,219.58]
[1756476491112,67.1249,208.54,208.43,7.46]
[1756476491324,201.2772,208.64,208.37,219.16]
[1756476491325,67.1366,208.5,208.37,219.16]
[1756476491616,67.1502,208.46,208.34,322.46]
[1756476491817,67.1647,208.42,208.34,322.46]
[1756476492022,67.1647,208.42,208.19,67.2359]
[1756476492023,67.1759,208.38,208.21,322.46]
[1756476492211,201.4235,208.49,208.21,541.18]
[1756476492411,523.834,208.54,208.26,51.53288909]
[1756476492721,541.1,208.69,208.38,51.53288909]
[1756476492917,218.64,208.7,208.39,218.64]
[1756476493109,270.17288909,208.7,208.36,322.46]
[1756476493515,14.41,208.69,208.36,322.46]
[1756476493723,14.41,208.67,208.36,322.46]
[1756476493916,322.46,208.71,208.4,51.53288909]
[1756476494120,218.42,208.7,208.4,51.53288909]
[1756476494421,218.44,208.69,208.4,51.53288909]
[1756476494625,14.41,208.68,208.37,7.46]
[1756476495019,232.65,208.67,208.37,7.46]
[1756476495718,232.65,208.67,208.36,322.46]
[1756476496121,14.41,208.7,208.41,7.46]
[1756476496321,322.44,208.71,208.47,7.46]
[1756476496522,322.44,208.71,208.47,225.12]
[1756476496718,322.44,208.71,208.52,51.53288909]
[1756476497027,217.66,208.77,208.52,51.53288909]
[1756476497522,217.66,208.77,208.53,7.46]
[1756476498320,322.42,208.85,208.56,51.53288909]
[1756476498525,322.42,208.85,208.57,7.46]
[1756476498825,1381.64,209.03,208.53,322.38]
[1756476498826,217.34,208.97,208.63,7.46]
[1756476499025,51.53288909,208.95,208.63,7.46]
[1756476499219,51.53288909,208.89,208.53,329.84]
[1756476499623,124.0,208.96,208.55,7.46]
[1756476499821,217.06,208.95,208.64,58.99288909]
[1756476501121,217.06,208.95,208.64,7.46]
[1756476501322,51.53288909,208.91,208.58,51.53288909]
[1756476501822,217.06,208.95,208.56,7.46]
[1756476502024,51.53288909,208.9,208.56,7.46]
[1756476502621,51.53288909,208.9,208.55,1.0]
[1756476502622,51.53288909,208.84,208.55,1.0]
[1756476502829,14.41,208.9,208.55,1.0]
[1756476502830,51.53288909,208.78,208.55,1.0]
[1756476503029,216.84,208.77,208.55,1.0]
[1756476503231,14.41,208.76,208.55,1.0]
[1756476503532,14.41,208.71,208.55,1.0]
[1756476503828,67.0931,208.64,208.55,1.0]
[1756476504019,67.0711,208.71,208.55,1.0]
[1756476504221,67.0836,208.67,208.55,1.0]
[1756476504424,71.4025,208.65,208.55,1.0]
[1756476504629,67.0736,208.7,208.55,1.0]
[1756476504823,67.0676,208.72,208.55,1.0]
[1756476505029,67.0644,208.73,208.55,1.0]
[1756476505325,67.0865,208.66,208.55,1.0]
[1756476505527,4.3123,208.68,208.55,1.0]
[1756476505925,67.059,208.75,208.55,1.0]
[1756476505926,67.0962,208.63,208.55,1.0]
[1756476506534,67.0904,208.65,208.55,1.0]
[1756476506824,67.0717,208.71,208.55,1.0]
[1756476507026,215.64,208.78,208.55,1.0]
[1756476507226,5.13340319,209.06,208.55,1.0]
[1756476507426,322.18,208.93,208.56,7.46]
[1756476507729,322.18,208.93,208.59,7.46]
[1756476507730,215.68,208.92,208.59,7.46]
[1756476507930,51.53288909,208.89,208.59,7.46]
[1756476508324,51.53288909,208.89,208.55,1.0]
[1756476508325,65.94288909,208.83,208.55,1.0]
[1756476508828,322.18,208.93,208.55,1.0]
[1756476508829,14.41,208.91,208.55,1.0]
[1756476509031,14.41,208.83,208.55,1.0]
[1756476509432,65.94288909,208.81,208.55,1.0]
[1756476510630,65.94288909,208.75,208.55,1.0]
[1756476510827,551.17,208.74,208.55,1.0]
[1756476511228,14.41,208.68,208.55,1.0]
[1756476511532,51.53288909,208.69,208.55,1.0]
[1756476511734,51.53288909,208.73,208.55,1.0]
[1756476512122,322.18,208.72,208.55,1.0]
[1756476512326,51.53288909,208.7,208.55,1.0]
[1756476512530,51.53288909,208.64,208.55,1.0]
[1756476512732,536.22,208.63,208.55,1.0]
[1756476512932,322.18,208.63,208.55,1.0]
[1756476513134,213.74,208.62,208.55,1.0]
[1756476513531,4.3164,208.49,208.42,7.46]
[1756476514032,67.1464,208.48,208.34,7.46]
[1756476514228,4.3162,208.49,208.34,7.46]
[1756476514532,67.1341,208.52,208.35,7.46]
[1756476514928,67.1545,208.45,208.35,7.46]
[1756476515124,67.1712,208.4,208.28,7.46]
[1756476515325,4.3182,208.4,208.28,7.46]
[1756476515523,67.1545,208.45,208.28,7.46]
[1756476515724,67.1715,208.4,208.28,7.46]
[1756476515924,67.1843,208.36,208.21,1.0]
[1756476516129,67.1745,208.39,208.21,1.0]
[1756476516130,67.2008,208.31,208.21,1.0]
[1756476516325,67.1964,208.32,208.21,1.0]
[1756476516629,67.1792,208.38,208.21,1.0]
[1756476516834,67.158,208.44,208.25,30.16872929]
[1756476517135,322.24,208.46,208.27,4.3208]
[1756476517331,67.1257,208.54,208.31,30.16872929]
[1756476517532,67.1394,208.5,208.32,7.58]
[1756476517834,67.1661,208.42,208.26,7.58]
[1756476518130,71.4839,208.42,208.26,7.58]
[1756476518335,67.1809,208.37,208.26,7.58]
[1756476518634,71.5099,208.34,208.19,7.58]
[1756476518839,67.165,208.42,208.2,30.16872929]
[1756476519032,71.4898,208.4,208.2,30.16872929]
[1756476519233,322.32,208.43,208.26,30.16872929]
[1756476519636,322.32,208.43,208.24,7.58]
[1756476519933,322.32,208.43,208.17,7.58]
[1756476519934,67.1839,208.36,208.17,7.58]
[1756476520127,67.187,208.35,208.17,7.58]
[1756476520439,67.1739,208.39,208.17,7.58]
[1756476520739,67.1679,208.41,208.22,7.58]
[1756476521332,67.1776,208.38,208.22,7.58]
[1756476521532,67.194,208.33,208.16,30.16872929]
[1756476521733,67.194,208.33,208.14,329.8]
[1756476521932,278.5058,208.36,208.14,329.8]
[1756476522238,211.28,208.39,208.19,7.58]
[1756476522626,211.28,208.39,208.21,31.16872929]
[1756476522832,322.32,208.43,208.22,7.58]
[1756476523238,14.41,208.56,208.33,30.16872929]
[1756476523435,210.74,208.54,208.35,7.58]
[1756476524334,210.74,208.54,208.36,4.3189]
[1756476524733,210.74,208.54,208.35,7.58]
[1756476525131,322.42,208.57,208.35,7.58]
[1756476525435,210.78,208.56,208.35,11.8989]
[1756476526033,322.42,208.57,208.37,4.3186]
[1756476526235,210.18,208.56,208.35,7.58]
[1756476526532,224.59,208.56,208.28,69.58]
[1756476526737,224.59,208.56,208.28,7.58]
[1756476526935,14.41,208.53,208.28,7.58]
[1756476527238,14.41,208.53,208.23,30.16872929]
[1756476527438,14.41,208.48,208.21,8.58]
[1756476527639,14.41,208.46,208.21,12.9018]
[1756476527834,30.16872929,208.49,208.21,12.9018]
[1756476528039,446.42,208.57,208.28,1.0]
[1756476528040,181.49,208.48,208.28,1.0]
[1756476528637,14.41,208.45,208.28,1.0]
[1756476528943,208.84,208.44,208.28,1.0]
[1756476529141,14.41,208.43,208.28,1.0]
[1756476529541,67.1723,208.4,208.28,1.0]
[1756476529739,67.1526,208.46,208.28,8.58]
[1756476530134,67.1549,208.45,208.28,8.58]
[1756476530334,67.1333,208.52,208.28,8.58]
[1756476530539,4.3156,208.52,208.32,7.58]
[1756476531036,4.315,208.55,208.35,67.1862]
[1756476531235,4.315,208.55,208.36,67.1827]
[1756476531436,322.46,208.56,208.39,4.3181]
[1756476531648,322.46,208.56,208.39,67.1732]
[1756476531943,322.46,208.56,208.41,4.3178]
[1756476532341,71.4237,208.59,208.41,4.3178]
[1756476532543,67.1155,208.57,208.38,4.3184]
[1756476532840,4.3151,208.55,208.37,7.58]
[1756476533233,67.0881,208.66,208.44,7.58]
[1756476533545,67.0839,208.67,208.47,67.1474]
[1756476533737,597.4815,208.68,208.48,4.3163]
[1756476534140,4.3129,208.65,208.48,4.3163]
[1756476534344,597.4815,208.68,208.45,4.317]
[1756476534547,597.4815,208.68,208.44,7.58]
[1756476535237,597.4815,208.68,208.48,1.0]
[1756476535638,530.4,208.68,208.48,1.0]
[1756476536247,544.81,208.68,208.48,1.0]
[1756476536441,14.41,208.65,208.48,1.0]
[1756476537040,206.12,208.64,208.48,1.0]
[1756476537246,14.41,208.65,208.48,1.0]
[1756476537443,220.35,208.64,208.48,1.0]
[1756476537640,44.57872929,208.62,208.48,1.0]
[1756476538040,44.57872929,208.57,208.48,1.0]
[1756476538343,322.48,208.68,208.48,1.0]
[1756476538547,249.91872929,208.67,208.48,1.0]
[1756476540345,14.41,208.61,208.48,1.0]
[1756476540842,30.16872929,208.62,208.48,1.0]
[1756476540843,67.1173,208.57,208.48,1.0]
[1756476541242,271.5773,208.57,208.48,1.0]
[1756476541444,67.1173,208.57,208.48,1.0]
[1756476541747,4.315,208.55,208.48,1.0]
[1756476541945,67.1034,208.61,208.48,1.0]
[1756476542143,67.1137,208.58,208.48,1.0]
[1756476542338,204.12,208.61,208.48,1.0]
[1756476542546,67.0967,208.63,208.48,1.0]
[1756476542843,270.8744,208.64,208.48,1.0]
[1756476542844,4.3149,208.56,208.48,1.0]
[1756476543043,203.52,208.63,208.48,1.0]
[1756476543751,204.35459242,208.63,208.48,1.0]
[1756476543951,203.06,208.62,208.48,1.0]
[1756476544147,67.0944,208.64,208.48,1.0]
[1756476545051,67.92895239,208.64,208.48,1.0]
[1756476545345,14.41,208.62,208.48,1.0]
[1756476545545,14.41,208.56,208.48,1.0]
[1756476545746,14.41,208.5,208.31,7.58]
[1756476546045,0.83455239,208.64,208.31,7.58]
[1756476546046,14.41,208.45,208.31,0.17405528]
[1756476546244,322.34,208.51,208.24,7.58]
[1756476546245,14.41,208.5,208.24,7.58]
[1756476546441,322.34,208.51,208.29,7.58]
[1756476546642,201.94,208.5,208.36,7.46]
[1756476546845,322.34,208.51,208.45,0.17405528]
[1756476547051,322.34,208.51,208.43,0.17405528]
[1756476547248,336.75,208.51,208.43,0.17405528]
[1756476547643,322.34,208.51,208.36,7.46]
[1756476547846,322.34,208.51,208.27,3.96492402]
[1756476548049,322.34,208.51,208.4,0.17405528]
[1756476548247,322.34,208.51,208.3,7.46]
[1756476548543,322.34,208.51,208.45,0.17405528]
[1756476548947,322.34,208.51,208.46,0.17405528]
[1756476549141,201.26,208.52,208.43,0.17405528]
[1756476549346,201.26,208.52,208.45,0.17405528]
[1756476549748,215.67,208.52,208.36,7.46]
[1756476549947,201.26,208.52,208.44,0.17405528]
[1756476550148,201.26,208.52,208.36,7.46]
[1756476550348,215.67,208.52,208.29,7.46]
[1756476550656,200.36,208.51,208.36,7.46]
[1756476550953,200.36,208.51,208.47,0.17405528]
[1756476551151,4.3156,208.52,208.47,0.17405528]
[1756476551355,67.1143,208.58,208.36,67.183]
[1756476551356,67.0984,208.63,208.46,7.46]
[1756476551553,67.1084,208.6,208.51,0.17405528]
[1756476551855,67.1138,208.58,208.46,7.46]
[1756476552055,200.14,208.61,208.53,0.17405528]
[1756476552254,322.38,208.64,208.48,74.6044]
[1756476552456,322.38,208.64,208.6,0.17405528]
[1756476552649,322.38,208.64,208.48,7.46]
[1756476552650,326.6932,208.64,208.59,0.17405528]
[1756476552852,67.0969,208.63,208.48,7.46]
[1756476553047,67.1046,208.61,208.48,7.46]
[1756476553454,67.0902,208.65,208.48,7.46]
[1756476553759,199.7,208.65,208.48,74.6039]
[1756476553951,4.3134,208.63,208.48,7.46]
[1756476554459,67.1066,208.6,208.48,7.46]
[1756476554655,67.1094,208.59,208.48,7.46]
[1756476554857,67.0996,208.62,208.48,7.46]
[1756476555156,67.0903,208.65,208.48,7.46]
[1756476555357,199.12,208.66,208.48,7.46]
[1756476555657,0.83451236,208.65,208.48,7.46]
[1756476555858,0.83451236,208.65,208.43,3.96492402]
[1756476556158,0.83451236,208.65,208.42,3.96492402]
[1756476556358,0.83451236,208.65,208.43,7.46]
[1756476557356,15.24451236,208.65,208.43,7.46]
[1756476557553,0.83451236,208.65,208.43,7.46]
[1756476557754,189.7,208.64,208.43,7.46]
[1756476558160,0.83451236,208.65,208.43,7.46]
[1756476558456,30.16872929,208.71,208.49,3.99564906]
[1756476558653,197.26,208.75,208.52,3.99564906]
[1756476558961,0.83430229,208.72,208.53,7.46]
[1756476559260,197.26,208.75,208.55,3.99564906]
[1756476559460,197.26,208.75,208.56,7.46]
[1756476559660,15.2441623,208.74,208.5,11.45564906]
[1756476559857,15.2441623,208.74,208.5,7.46]
[1756476560854,0.8341623,208.74,208.5,7.46]
[1756476561057,0.8341623,208.74,208.53,7.46]
[1756476561253,0.8341623,208.74,208.53,11.45564906]
[1756476561457,0.8341623,208.74,208.55,4.3148]
[1756476561652,0.8341623,208.74,208.54,11.45564906]
[1756476561653,0.8341623,208.74,208.54,7.46]
[1756476561855,67.0905,208.65,208.54,7.46]
[1756476562256,67.0901,208.65,208.54,7.46]
[1756476562657,67.0835,208.67,208.54,7.46]
[1756476562857,4.313,208.65,208.54,7.46]
[1756476563063,67.0835,208.67,208.54,7.46]
[1756476563463,4.3128,208.66,208.54,7.46]
[1756476564365,4.3121,208.69,208.54,7.46]
[1756476564566,67.8965623,208.74,208.54,74.5847]
[1756476564759,195.3541623,208.74,208.54,7.46]
[1756476565559,194.18,208.73,208.54,7.46]
[1756476565764,0.8341623,208.74,208.54,7.46]
[1756476566272,4.3117,208.71,208.55,4.3149]
[1756476566466,67.0804,208.68,208.54,7.46]
[1756476566772,67.0973,208.63,208.54,7.46]
[1756476566959,67.1042,208.61,208.49,3.99564906]
[1756476567164,67.0949,208.64,208.46,5.28768124]
[1756476567165,67.0949,208.64,208.48,7.46]
[1756476567361,4.313,208.65,208.52,7.46]
[1756476567773,67.0723,208.71,208.53,67.1281]
[1756476567971,67.0463,208.79,208.6,7.46]
[1756476568168,389.2967,208.82,208.64,7.46]
[1756476568370,67.0547,208.76,208.64,7.46]
[1756476568674,389.2978,208.82,208.64,7.46]
[1756476569274,67.0419,208.8,208.65,4.3128]
[1756476569863,389.2978,208.82,208.67,4.3124]
[1756476570177,322.26,208.82,208.68,7.46]
[1756476570473,4.3097,208.81,208.69,4.312]
[1756476570666,322.26,208.82,208.69,4.312]
[1756476570967,66.9987,208.94,208.76,7.46]
[1756476571167,513.92,208.95,208.77,67.0504]
[1756476571374,322.18,208.95,208.8,7.46]
[1756476571571,322.18,208.95,208.81,4.3094]
[1756476571764,322.18,208.95,208.8,7.46]
[1756476572474,337.42329342,208.95,208.73,7.46]
[1756476575178,190.5,208.94,208.73,7.46]
[1756476576771,190.5,208.94,208.73,11.7711]
[1756476577174,190.5,208.94,208.73,7.46]
[1756476577374,190.5,208.94,208.75,4.3107]
[1756476577566,190.5,208.94,208.74,18.77804113]
[1756476577772,190.5,208.94,208.73,7.46]
[1756476578073,14.41,208.93,208.73,7.46]
[1756476579171,14.41,208.93,208.69,18.77804113]
[1756476579172,14.41,208.93,208.66,18.77804113]
[1756476579369,14.41,208.84,208.6,7.66]
[1756476579570,14.41,208.82,208.6,7.66]
[1756476579773,14.41,208.79,208.6,7.66]
[1756476580375,14.41,208.93,208.6,26.43804113]
[1756476580676,14.41,208.85,208.6,26.43804113]
[1756476580873,14.41,208.83,208.6,26.43804113]
[1756476581573,14.41,208.83,208.49,438.57564906]
[1756476581574,14.41,208.8,208.53,7.66]
[1756476581768,14.41,208.75,208.53,7.66]
[1756476581967,14.41,208.73,208.53,7.66]
[1756476582172,187.68,208.73,208.55,4.3148]
[1756476582576,187.54,208.73,208.55,4.3148]
[1756476583570,187.54,208.73,208.58,26.43804113]
[1756476583772,187.54,208.73,208.58,7.66]
[1756476584478,321.98,208.79,208.58,7.66]
[1756476584679,186.96,208.78,208.58,7.66]
[1756476585179,18.77804113,208.77,208.51,11.9757]
[1756476585383,18.77804113,208.77,208.51,7.66]
[1756476586482,18.77804113,208.77,208.52,4.3155]
[1756476586879,18.77804113,208.77,208.51,7.66]
[1756476587183,18.77804113,208.67,208.44,7.66]
[1756476587376,185.68,208.66,208.44,7.66]
[1756476587583,18.77804113,208.62,208.31,3.99564906]
[1756476587780,18.77804113,208.56,208.29,7.66]
[1756476588076,18.77804113,208.51,208.29,7.66]
[1756476588485,143.98,208.5,208.31,7.66]
[1756476588685,143.98,208.51,208.31,7.66]
[1756476589088,18.77804113,208.59,208.31,7.66]
[1756476589382,185.44,208.58,208.36,7.66]
[1756476589687,322.04,208.61,208.36,7.66]
[1756476589883,185.14,208.6,208.36,7.66]
[1756476590275,185.14,208.6,208.36,26.43804113]
[1756476590481,184.94,208.59,208.42,7.66]
[1756476591376,322.04,208.61,208.42,7.66]
[1756476591980,340.81804113,208.61,208.34,7.66]
[1756476592182,340.81804113,208.61,208.35,18.77804113]
[1756476592580,184.32,208.6,208.36,7.66]
[1756476592780,340.81804113,208.61,208.4,18.77804113]
[1756476592976,184.14,208.6,208.41,7.66]
[1756476593181,322.04,208.61,208.44,4.317]
[1756476593387,322.04,208.61,208.45,7.66]
[1756476593680,322.04,208.61,208.45,26.43804113]
[1756476593882,528.0,208.74,208.46,7.66]
[1756476594083,183.64,208.67,208.46,7.66]
[1756476594486,322.2,208.75,208.51,7.66]
[1756476594790,505.72,208.75,208.56,7.66]
[1756476595085,505.72,208.75,208.59,4.3139]
[1756476595288,505.72,208.75,208.56,7.66]
[1756476595488,505.72,208.75,208.58,4.3143]
[1756476596485,67.0675,208.72,208.56,7.66]